bitfinex-derivatives/quotes_ETHF0:USTF0_20250606
["timestamp","ask_amount","ask_price","bid_price","bid_amount"]
[1749224269791,4.5317,2505.2,2505.1,0.79768]
[1749224270692,3.2078,2505.2,2505.1,0.79768]
[1749224275208,1.99365,2505.8,2505.1,0.79768]
[1749224275209,5.16,2506.1,2505.8,0.79746]
[1749224275397,0.6273,2506.2,2506.1,0.79736]
[1749224275598,0.6273,2506.2,2505.5,3.98767]
[1749224275599,0.6273,2506.2,2505.6,1.99378]
[1749224275793,2.67905,2506.2,2506.0,0.79739]
[1749224276104,2.67905,2506.2,2505.9,0.7974]
[1749224276299,2.67904,2506.2,2505.7,1.99373]
[1749224276492,1.8817,2506.2,2506.1,0.79736]
[1749224277000,0.6273,2506.2,2506.1,0.79736]
[1749224277697,0.67720719,2506.3,2506.2,0.79733]
[1749224277698,7.19e-06,2506.3,2506.2,0.79733]
[1749224280004,0.79730719,2506.3,2506.1,0.79734]
[1749224280206,7.19e-06,2506.3,2506.2,0.79733]
[1749224280704,7.19e-06,2506.3,2505.9,3.32496]
[1749224280900,7.19e-06,2506.3,2506.2,0.79733]
[1749224282902,7.19e-06,2506.3,2505.9,1.3314]
[1749224282903,3.20780719,2506.3,2505.9,1.3314]
[1749224283093,4.00512719,2506.3,2505.9,1.3314]
[1749224283301,1.99342,2506.1,2505.6,0.6667]
[1749224283499,8.3668,2506.0,2505.2,5.20191]
[1749224283800,0.79753,2505.6,2505.4,0.79756]
[1749224284001,0.79753,2505.6,2505.4,0.79757]
[1749224284206,1.391,2505.6,2505.5,0.79756]
[1749224284409,1.391,2505.6,2505.2,3.2078]
[1749224284611,1.391,2505.6,2505.5,0.79756]
[1749224284804,6.55,2505.6,2505.5,0.79756]
[1749224286004,0.6785,2505.9,2505.8,0.79746]
[1749224286199,5.787,2506.2,2506.1,0.79737]
[1749224286409,6.68572597,2506.2,2506.1,0.79737]
[1749224286600,0.79737,2506.1,2505.7,1.3564]
[1749224286905,5.787,2506.2,2506.1,0.79737]
[1749224287099,6.68571914,2506.2,2506.1,0.79737]
[1749224287301,6.85505914,2506.2,2506.0,0.79738]
[1749224287498,0.89870107,2506.1,2505.7,1.3564]
[1749224287807,7.29646,2506.2,2506.0,0.7974]
[1749224288302,6.4991,2506.2,2506.1,0.79737]
[1749224288497,8.19470091,2506.2,2506.0,0.79738]
[1749224288704,6.4991,2506.2,2505.7,1.3564]
[1749224288895,6.4991,2506.2,2505.5,1.99385]
[1749224289101,3.2078,2505.7,2505.4,1.99398]
[1749224289300,5.159,2505.6,2505.5,0.79756]
[1749224291908,3.8403,2505.7,2505.6,0.79752]
[1749224292106,8.3668,2505.7,2505.6,0.79752]
[1749224292310,9.1643,2505.7,2505.5,0.79753]
[1749224292610,10.4694,2505.7,2505.5,0.79753]
[1749224292807,10.4694,2505.7,2505.2,5.20191]
[1749224292808,9.6719,2505.7,2505.2,3.2078]
[1749224293110,9.6719,2505.7,2505.4,0.79757]
[1749224293304,9.6719,2505.7,2504.9,7.83124]
[1749224293508,3.2078,2505.4,2505.3,0.79762]
[1749224293706,24.169,2505.4,2504.9,2.6291]
[1749224293902,24.96659,2505.4,2505.3,0.79761]
[1749224294206,24.169,2505.4,2505.3,0.79762]
[1749224294902,24.9666,2505.4,2505.0,1.99429]
[1749224295104,24.9666,2505.4,2505.2,0.79763]
[1749224295303,24.9666,2505.4,2505.3,0.79762]
[1749224295304,24.169,2505.4,2505.3,0.79762]
[1749224296011,24.96659,2505.4,2505.3,0.79762]
[1749224296310,24.169,2505.4,2505.3,0.79762]
[1749224296609,27.3768,2505.4,2505.3,0.79762]
[1749224297914,28.17441,2505.4,2505.0,1.9943]
[1749224298308,27.3768,2505.4,2505.3,0.79762]
[1749224298610,3.2078,2505.4,2505.3,0.79762]
[1749224298809,27.3718,2505.4,2505.3,0.79762]
[1749224299003,0.6414,2505.6,2505.5,0.79756]
[1749224299207,6.4924,2505.9,2505.5,0.79756]
[1749224299401,7.19e-06,2506.3,2506.1,0.79737]
[1749224299402,5.154,2506.2,2506.1,0.79737]
[1749224299605,0.79737,2506.1,2505.9,0.79742]
[1749224299811,0.79737,2506.1,2505.8,0.65]
[1749224299812,3.2078,2506.1,2505.8,0.65]
[1749224300006,4.528,2506.1,2505.8,0.65]
[1749224300217,5.32538,2506.1,2505.9,0.79741]
[1749224300410,5.32538,2506.1,2505.7,0.79748]
[1749224300411,9.528,2506.1,2505.7,0.79748]
[1749224300614,9.528,2506.1,2505.3,1.99401]
[1749224300615,0.90060789,2506.0,2505.6,1.99382]
[1749224300803,7.19e-06,2506.3,2505.7,3.2078]
[1749224301010,5.154,2506.0,2505.9,0.79743]
[1749224301510,5.154,2506.0,2505.8,0.6531]
[1749224301711,5.154,2506.0,2505.9,0.79743]
[1749224301917,6.05507771,2506.0,2505.9,0.79743]
[1749224302312,0.79744,2505.9,2505.6,1.9349]
[1749224302610,5.154,2506.0,2505.9,0.79743]
[1749224302813,6.05565781,2506.0,2505.9,0.79743]
[1749224303011,5.154,2506.0,2505.9,0.79743]
[1749224303411,5.154,2506.0,2505.8,0.79745]
[1749224303714,5.95142,2506.0,2505.8,0.79745]
[1749224303915,5.154,2506.0,2505.6,0.6531]
[1749224304119,0.79744,2505.9,2505.6,0.6531]
[1749224304314,3.2078,2505.8,2505.6,1.45062]
[1749224304510,0.79749,2505.7,2505.6,1.45062]
[1749224304714,0.79749,2505.7,2505.6,0.6531]
[1749224304917,4.00528,2505.8,2505.6,0.6531]
[1749224305216,1.70033705,2505.7,2505.3,0.6764]
[1749224305416,5.154,2505.6,2505.5,0.79753]
[1749224306213,19.664,2505.7,2505.6,0.79753]
[1749224306422,25.72103313,2505.7,2505.6,0.79753]
[1749224306808,26.51852313,2505.7,2505.6,0.79753]
[1749224307220,0.79754,2505.6,2505.3,1.3592]
[1749224307521,25.61551,2505.7,2505.6,0.79753]
[1749224307719,25.61551,2505.7,2505.5,0.79753]
[1749224307720,26.51865373,2505.7,2505.5,0.79753]
[1749224307915,0.90314373,2505.6,2505.5,0.79753]
[1749224308117,5.154,2505.6,2505.3,1.3592]
[1749224308321,5.154,2505.6,2505.5,0.79756]
[1749224308815,0.79747,2505.8,2505.7,0.79749]
[1749224309015,6.85469637,2505.8,2505.7,0.79749]
[1749224309322,0.7975,2505.7,2505.4,1.2591]
[1749224309513,8.3618,2505.8,2505.5,0.79754]
[1749224309712,0.79753,2505.6,2505.5,0.79754]
[1749224309918,0.79752,2505.7,2505.5,0.79753]
[1749224310120,0.79753,2505.6,2505.5,0.79753]
[1749224310625,0.7975,2505.7,2505.6,0.79751]
[1749224310822,0.90362478,2505.7,2505.4,1.2591]
[1749224311119,9.15927,2505.8,2505.7,0.79749]
[1749224311323,10.06818804,2505.8,2505.6,0.7975]
[1749224311624,1.70641804,2505.7,2505.6,0.7975]
[1749224311823,0.90891804,2505.7,2505.6,0.79753]
[1749224312018,0.90891804,2505.7,2505.3,3.35326]
[1749224312224,0.79754,2505.6,2505.5,0.79755]
[1749224312422,0.90891804,2505.6,2505.5,0.79755]
[1749224312922,1.70644804,2505.6,2505.5,0.79755]
[1749224313626,1.70644804,2505.6,2505.3,0.682]
[1749224313627,0.79756,2505.5,2505.4,0.79757]
[1749224313822,0.90891804,2505.5,2505.4,0.79757]
[1749224314328,0.79755,2505.6,2505.5,0.79755]
[1749224314520,6.06389563,2505.6,2505.5,0.79755]
[1749224315123,5.154,2505.6,2505.5,0.79755]
[1749224315818,3.2078,2505.8,2505.4,1.3244]
[1749224316130,6.06398846,2505.7,2505.6,0.79753]
[1749224317126,6.86148846,2505.7,2505.6,0.79753]
[1749224317525,6.06398846,2505.7,2505.6,0.79753]
[1749224317926,6.86148846,2505.7,2505.6,0.79753]
[1749224318527,6.86148846,2505.7,2505.4,1.3244]
[1749224318528,6.06398846,2505.7,2505.4,1.3244]
[1749224318724,1.70753846,2505.6,2505.5,0.79756]
[1749224319031,0.79757,2505.5,2505.4,0.79756]
[1749224319226,0.910721,2505.5,2505.4,0.79759]
[1749224320124,0.910721,2505.5,2505.4,2.09739]
[1749224323330,5.9515,2505.7,2505.6,0.79753]
[1749224323632,6.06485902,2505.7,2505.6,0.79753]
[1749224324231,6.86235902,2505.7,2505.6,0.79753]
[1749224326133,0.79756,2505.6,2505.5,0.79755]
[1749224326327,0.91085902,2505.6,2505.5,0.79755]
[1749224326527,0.79763,2505.3,2505.2,0.6398]
[1749224326729,3.2078,2505.4,2505.3,0.79763]
[1749224326933,3.2078,2505.4,2505.2,0.6398]
[1749224326934,4.11985291,2505.4,2505.2,1.43743]
[1749224327127,5.154,2505.3,2505.2,1.43743]
[1749224327634,5.148,2505.6,2505.5,0.79756]
[1749224327836,6.06019926,2505.6,2505.5,0.79756]
[1749224328936,6.85772926,2505.6,2505.5,0.79756]
[1749224329934,6.85772926,2505.6,2505.3,0.79761]
[1749224329935,0.79762,2505.4,2505.3,0.79761]
[1749224330134,4.11999926,2505.4,2505.3,0.79761]
[1749224330333,4.91758926,2505.4,2505.3,0.79761]
[1749224331338,4.11999926,2505.4,2505.3,0.79761]
[1749224332440,0.91219926,2505.4,2505.3,0.79761]
[1749224332639,0.91102669,2505.4,2505.3,2.07853]
[1749224332839,6.05902669,2505.4,2505.3,2.07853]
[1749224334139,6.05902669,2505.4,2505.3,0.52233087]
[1749224335839,6.05930329,2505.4,2505.3,0.52233087]
[1749224336232,0.91130329,2505.4,2505.3,0.52233087]
[1749224336437,5.148,2505.7,2505.5,1.99388]
[1749224336640,0.91130133,2505.6,2505.5,0.79756]
[1749224338343,5.148,2505.8,2505.5,0.79756]
[1749224338541,0.91102294,2505.7,2505.6,0.79753]
[1749224340244,0.91102294,2505.7,2505.4,1.99397]
[1749224340540,5.148,2505.8,2505.7,0.7975]
[1749224340740,6.05933547,2505.8,2505.7,0.7975]
[1749224341442,0.91133547,2505.8,2505.7,0.7975]
[1749224342141,3.2078,2506.6,2506.2,0.79734]
[1749224342642,0.79736,2506.2,2506.1,0.79735]
[1749224343239,8.35580719,2506.3,2505.9,1.99369]
[1749224343439,0.7974,2506.2,2506.1,0.79738]
[1749224343639,2.0525,2506.2,2506.1,0.79738]
[1749224344040,1.2551,2506.2,2506.1,0.79738]
[1749224344243,1.2551,2506.2,2506.1,0.40843814]
[1749224344443,1.2551,2506.2,2505.8,0.6296]
[1749224344640,2.62966,2506.1,2505.6,3.2078]
[1749224344838,0.79752,2505.8,2505.7,0.79751]
[1749224345140,9.15333,2505.8,2505.4,1.9941]
[1749224345338,9.15333,2505.8,2505.7,0.79754]
[1749224345739,8.3558,2505.8,2505.7,0.79754]
[1749224346249,9.1533,2505.8,2505.5,1.99401]
[1749224346447,10.5208,2505.8,2505.7,0.79754]
[1749224347644,9.7233,2505.8,2505.7,0.79754]
[1749224347846,5.148,2505.8,2505.7,0.79754]
[1749224348651,0.79757,2505.7,2505.6,0.79755]
[1749224349042,9.15334,2505.8,2505.7,0.79754]
[1749224350453,0.79758,2505.7,2505.6,0.79755]
[1749224350751,2.13878,2505.7,2505.6,0.79755]
[1749224350951,3.2078,2505.8,2505.7,0.79754]
[1749224351147,8.3558,2505.8,2505.7,0.79754]
[1749224351347,9.15331,2505.8,2505.7,0.79754]
[1749224351549,8.3558,2505.8,2505.7,0.79754]
[1749224351748,9.15331,2505.8,2505.7,0.79754]
[1749224352052,5.36651,2505.8,2505.7,0.79754]
[1749224352347,0.79763,2505.5,2505.4,0.7976]
[1749224352547,3.2078,2505.5,2505.4,0.7976]
[1749224352950,4.0054,2505.5,2505.4,0.7976]
[1749224353149,3.2078,2505.5,2505.4,0.7976]
[1749224354155,3.2078,2505.5,2505.4,0.40856209]
[1749224354355,4.0054,2505.5,2505.4,0.40856209]
[1749224354755,0.79767,2505.4,2505.3,0.79763]
[1749224355052,0.79767,2505.4,2504.8,2.37868453]
[1749224355053,5.148,2505.4,2504.8,2.37868453]
[1749224355256,0.79786,2504.7,2504.6,0.79788]
[1749224355755,5.148,2504.8,2504.5,0.6393]
[1749224355756,5.148,2504.8,2504.7,0.79786]
[1749224355952,6.05574506,2504.8,2504.7,0.79786]
[1749224356658,6.85357506,2504.8,2504.7,0.79786]
[1749224356954,0.00598719,2504.9,2504.8,0.79783]
[1749224357759,0.79785,2504.8,2504.7,0.79784]
[1749224357954,3.21378719,2504.9,2504.8,0.79783]
[1749224358146,4.57568719,2504.9,2504.8,0.79783]
[1749224358354,5.37348719,2504.9,2504.8,0.79783]
[1749224358664,5.37351719,2504.9,2504.8,0.79783]
[1749224359262,3.21378719,2504.9,2504.8,0.79783]
[1749224359555,0.00598719,2504.9,2504.8,0.79783]
[1749224359959,0.80378719,2504.9,2504.8,0.79783]
[1749224360356,0.00598719,2504.9,2504.8,0.79783]
[1749224360760,0.79788,2504.7,2504.6,0.79785]
[1749224360960,0.79788,2504.7,2504.5,0.6393]
[1749224360961,1.39138719,2504.9,2504.5,2.63411]
[1749224361161,0.79786,2504.8,2504.7,0.79784]
[1749224362060,0.79789,2504.7,2504.6,0.79787]
[1749224362462,4.00569,2504.7,2504.6,0.79787]
[1749224362860,3.2078,2504.7,2504.6,0.79787]
[1749224363668,8.3478,2504.7,2504.6,0.79787]
[1749224364160,3.2078,2504.7,2504.6,0.79787]
[1749224364464,8.3478,2504.7,2504.6,0.79787]
[1749224365159,9.14566,2504.7,2504.6,0.79787]
[1749224365963,9.14568,2504.7,2504.6,0.79789]
[1749224366160,4.00568,2504.7,2504.6,0.79789]
[1749224366357,27.3328,2504.7,2504.6,0.79789]
[1749224366565,4.00566,2504.7,2504.6,0.79789]
[1749224366765,9.14566,2504.7,2504.6,0.79789]
[1749224367768,0.79789,2504.6,2504.5,1.43721]
[1749224368061,9.14568,2504.7,2504.6,0.79789]
[1749224368265,0.79789,2504.6,2504.5,0.6393]
[1749224369162,11.63897,2504.7,2503.9,0.6729]
[1749224369468,0.79801,2504.3,2504.2,0.79801]
[1749224369768,5.141,2504.3,2504.2,0.79801]
[1749224370262,5.141,2504.3,2503.2,3.36839001]
[1749224370465,4.00595,2503.8,2503.7,0.79816]
[1749224370660,24.144,2504.0,2503.9,0.79811]
[1749224370860,0.79811,2503.9,2503.8,1.45343]
[1749224371361,24.144,2504.0,2503.9,0.79811]
[1749224371571,48.267,2504.0,2503.9,0.79811]
[1749224371763,24.144,2504.0,2503.9,0.79811]
[1749224371959,22.1918,2504.2,2504.1,0.79805]
[1749224372168,27.3328,2504.2,2504.1,0.79805]
[1749224373067,27.3318,2504.2,2504.1,0.79805]
[1749224373263,27.3318,2504.2,2503.8,3.92376]
[1749224373569,27.3318,2504.2,2504.0,0.79806]
[1749224373570,0.79809,2504.1,2504.0,0.79806]
[1749224373769,0.7981,2504.0,2503.9,0.79808]
[1749224373966,0.79807,2504.1,2503.8,0.6553]
[1749224374269,0.79807,2504.1,2504.0,0.79808]
[1749224374466,27.3318,2504.2,2503.8,0.6553]
[1749224374668,4.00591,2503.9,2503.8,0.6553]
[1749224374872,4.00591,2503.9,2503.8,1.45345]
[1749224375075,4.00591,2503.9,2503.8,0.6553]
[1749224375373,0.79818,2503.7,2503.6,0.79819]
[1749224375561,0.79818,2503.8,2503.7,0.79817]
[1749224375757,5.93918,2503.8,2503.7,0.79817]
[1749224375961,24.92218,2503.8,2503.7,0.79817]
[1749224376166,0.79821,2503.7,2503.6,0.7982]
[1749224376358,26.11941,2503.8,2503.3,0.6385]
[1749224376565,3.2078,2503.5,2503.4,0.79827]
[1749224376966,27.3308,2503.5,2503.4,0.79827]
[1749224377371,32.3308,2503.5,2502.1,3.17605826]
[1749224377570,32.3308,2503.5,2501.3,0.79892]
[1749224377571,3.2078,2502.2,2501.3,0.79892]
[1749224377868,3.2078,2501.4,2500.3,3.2078]
[1749224378170,3.2078,2500.5,2500.1,2.714]
[1749224378360,3.2078,2500.3,2499.6,3.2078]
[1749224378564,3.2078,2500.7,2499.9,3.2078]
[1749224378765,3.2078,2501.0,2500.8,0.79908]
[1749224378967,3.2078,2501.0,2499.3,5.2067]
[1749224378968,6.5265,2500.9,2499.3,5.2067]
[1749224379173,6.5265,2500.9,2498.7,0.16059001]
[1749224379174,3.2078,2500.6,2499.7,1.2588]
[1749224379368,3.2078,2500.6,2499.7,1.3388096]
[1749224379560,1.3845,2500.9,2500.3,3.2078]
[1749224379761,3.2078,2501.0,2500.3,3.2078]
[1749224379962,3.2078,2501.0,2500.0,3.2078]
[1749224380265,3.2078,2501.0,2500.1,7.0965]
[1749224380468,3.2078,2501.0,2500.6,0.79915]
[1749224381071,3.2078,2501.0,2500.2,5.144]
[1749224381277,3.2078,2501.0,2500.3,4.5332]
[1749224381462,3.2078,2501.0,2500.3,1.3254]
[1749224381667,4.4763,2501.0,2500.6,0.79914]
[1749224382067,4.4763,2501.0,2500.7,0.79913]
[1749224382264,4.4763,2501.0,2500.3,1.3254]
[1749224382265,3.2078,2501.0,2500.3,1.3254]
[1749224382470,3.2078,2501.0,2500.9,0.79907]
[1749224382771,0.00598719,2501.1,2501.0,0.79904]
[1749224382772,7.19e-06,2501.1,2501.0,0.79904]
[1749224383368,3.20780719,2501.1,2500.5,5.359]
[1749224383565,3.20780719,2501.1,2501.0,0.79904]
[1749224385870,3.20780719,2501.1,2500.8,0.00599928]
[1749224386072,3.20780719,2501.1,2501.0,0.79904]
[1749224387172,3.20780719,2501.1,2500.8,0.00599928]
[1749224387471,1.3196,2501.0,2500.8,0.00599928]
[1749224388071,2.11865,2501.0,2500.8,0.00599928]
[1749224388270,1.3196,2501.0,2500.8,0.00599928]
[1749224388774,2.11866,2501.0,2500.8,0.00599928]
[1749224389074,1.3196,2501.0,2500.8,0.00599928]
[1749224389275,1.3196,2501.0,2500.8,0.80508928]
[1749224389869,1.3196,2501.0,2500.8,0.00599928]
[1749224390069,2.11865,2501.0,2500.8,0.00599928]
[1749224390371,0.79912,2500.8,2500.4,0.79921]
[1749224390571,3.2078,2500.5,2500.4,0.79921]
[1749224394876,3.2078,2500.5,2500.4,0.79923]
[1749224396171,3.2078,2500.5,2499.8,4.5164]
[1749224396367,3.2078,2500.5,2500.4,0.79923]
[1749224396767,7.19e-06,2501.1,2500.4,0.79923]
[1749224397078,7.19e-06,2501.1,2501.0,0.79904]
[1749224397964,3.20780719,2501.1,2501.0,0.79904]
[1749224398368,4.00683719,2501.1,2501.0,0.79904]
[1749224398573,3.20780719,2501.1,2500.7,1.3071]
[1749224398768,3.2078,2500.8,2500.2,1.3582]
[1749224398965,3.2078,2500.8,2500.7,0.79914]
[1749224400067,0.79915,2500.7,2500.6,0.79915]
[1749224400273,3.2078,2500.8,2499.6,3.99736]
[1749224400274,3.2078,2500.8,2500.0,1.99833]
[1749224400577,0.79915,2500.7,2500.6,0.79915]
[1749224400776,0.79917,2500.6,2500.5,0.79917]
[1749224401183,0.79917,2500.6,2500.1,1.332]
[1749224401184,0.79922,2500.5,2500.4,0.79922]
[1749224401369,2.08628,2500.6,2500.5,0.7992]
[1749224401570,1.2871,2500.6,2500.5,0.7992]
[1749224401872,3.2078,2500.7,2500.6,0.79917]
[1749224402274,3.2078,2500.7,2500.1,3.33027]
[1749224402571,0.79923,2500.5,2500.4,0.79922]
[1749224402781,0.79929,2500.3,2500.2,0.79928]
[1749224402977,0.79929,2500.3,2499.9,1.99843]
[1749224402978,0.79926,2500.4,2500.3,0.79925]
[1749224403178,4.00702,2500.5,2500.4,0.79923]
[1749224403375,4.00702,2500.5,2500.1,1.99832]
[1749224403571,0.79922,2500.5,2500.4,0.79923]
[1749224403773,4.00702,2500.5,2500.4,0.79923]
[1749224404185,0.79926,2500.4,2500.3,0.79925]
[1749224405475,3.2078,2500.5,2500.4,0.79923]
[1749224405678,4.13722953,2500.5,2500.4,0.79923]
[1749224405878,4.93642953,2500.5,2500.4,0.79923]
[1749224406580,0.79925,2500.4,2500.1,1.99832]
[1749224406786,0.79925,2500.4,2500.3,0.79923]
[1749224406976,1.73071457,2500.4,2500.3,0.79923]
[1749224407880,0.93146457,2500.4,2500.3,0.79923]
[1749224408881,0.93146457,2500.4,2500.3,0.40941361]
[1749224409083,1.73069457,2500.4,2500.3,0.40941361]
[1749224409276,0.93146457,2500.4,2500.3,0.40941361]
[1749224409481,7.19e-06,2501.1,2500.3,0.40941361]
[1749224409482,3.20780719,2501.1,2500.3,5.0]
[1749224409682,7.19e-06,2501.1,2501.0,0.79904]
[1749224410587,7.19e-06,2501.1,2501.0,2.17774]
[1749224410789,7.19e-06,2501.1,2501.0,12.54174]
[1749224411483,7.19e-06,2501.1,2501.0,12.57574]
[1749224414889,3.2078,2502.2,2502.1,0.79868]
[1749224415089,3.2078,2502.3,2502.2,0.79865]
[1749224415285,3.2078,2502.6,2502.5,0.79856]
[1749224415488,4.00633,2502.6,2502.4,0.79857]
[1749224415688,0.79861,2502.4,2502.2,0.79864]
[1749224415883,3.2078,2502.3,2502.2,0.79864]
[1749224418193,0.00599928,2502.6,2502.5,0.79856]
[1749224418590,0.00599928,2502.6,2502.4,0.79859]
[1749224418795,0.79865,2502.3,2502.1,0.79866]
[1749224418992,3.2078,2502.2,2501.6,1.99708]
[1749224419191,4.00647,2502.2,2502.1,0.79868]
[1749224419397,4.00647,2502.2,2502.0,0.79869]
[1749224419597,1.3826,2502.1,2502.0,0.79869]
[1749224422901,3.2078,2502.2,2502.1,0.79868]
[1749224423206,4.00645,2502.2,2502.1,0.79868]
[1749224423406,3.2078,2502.2,2502.1,0.79868]
[1749224423803,4.00645,2502.2,2502.1,0.79868]
[1749224424307,4.00645,2502.2,2502.0,0.79869]
[1749224424506,1.3005,2502.1,2502.0,0.79869]
[1749224425203,3.8882,2502.5,2502.4,0.79859]
[1749224425403,9.28e-06,2502.6,2502.5,0.79856]
[1749224425606,9.28e-06,2502.6,2502.5,4.00636]
[1749224425806,9.28e-06,2502.6,2502.5,9.19842618]
[1749224426001,9.28e-06,2502.6,2502.5,9.00636]
[1749224427006,9.28e-06,2502.6,2502.5,0.79856]
[1749224427212,9.28e-06,2502.6,2502.3,0.66789928]
[1749224427409,3.2078,2502.5,2502.3,0.66789928]
[1749224427599,0.79859,2502.4,2502.3,0.00599928]
[1749224427801,1.3481,2502.4,2502.3,0.80461928]
[1749224428006,3.2078,2502.5,2502.4,0.79859]
[1749224428402,9.28e-06,2502.6,2502.5,0.79856]
[1749224429115,1.34810928,2502.6,2502.5,0.79856]
[1749224429912,9.28e-06,2502.6,2502.5,0.79856]
[1749224430314,3.20780928,2502.6,2502.5,0.79856]
[1749224432115,9.28e-06,2502.6,2502.5,0.79856]
[1749224434313,13.60280928,2502.6,2502.3,0.80459928]
[1749224434518,0.79859,2502.4,2502.3,0.80459928]
[1749224435313,0.79859,2502.4,2502.3,0.00599928]
[1749224435516,5.79859,2502.4,2502.3,0.00599928]
[1749224435823,5.79859,2502.4,2502.0,0.7987]
[1749224435824,0.7987,2502.1,2502.0,0.7987]
[1749224436015,4.0065,2502.1,2502.0,0.7987]
[1749224436315,0.79878,2501.9,2501.8,0.79876]
[1749224436520,2.84204,2502.0,2501.9,0.79875]
[1749224437524,2.84202,2502.0,2501.9,0.79875]
[1749224437814,2.0433,2502.0,2501.4,5.20503]
[1749224438015,4.00662,2501.8,2501.7,0.79879]
[1749224438315,3.2078,2501.8,2501.7,0.79879]
[1749224438524,4.00659,2501.8,2501.7,0.79879]
[1749224438723,3.2078,2501.8,2501.7,0.79879]
[1749224439418,4.00659,2501.8,2501.7,0.79879]
[1749224439619,5.39739,2501.8,2501.7,0.79879]
[1749224440017,0.79885,2501.7,2501.6,0.79883]
[1749224440219,1.3908,2501.7,2501.2,2.66321]
[1749224440421,1.99737,2501.3,2500.8,2.63437]
[1749224440620,3.2078,2501.1,2501.0,0.79904]
[1749224440917,3.2078,2501.1,2500.6,1.99792]
[1749224441116,1.3908,2501.0,2500.9,0.79907]
[1749224441315,0.00599928,2501.1,2500.9,0.79907]
[1749224441316,0.00599928,2501.1,2501.0,0.79904]
[1749224441516,9.28e-06,2501.1,2501.0,0.79904]
[1749224441717,9.28e-06,2501.1,2501.0,7.12804]
[1749224442117,9.28e-06,2501.1,2501.0,2.12804]
[1749224446228,9.28e-06,2501.1,2501.0,7.12804]
[1749224447128,9.28e-06,2501.1,2501.0,2.12804]
[1749224447324,9.28e-06,2501.1,2501.0,0.79904]
[1749224447525,3.20780928,2501.1,2501.0,0.79904]
[1749224447826,9.28e-06,2501.1,2501.0,0.79904]
[1749224448224,3.20780928,2501.1,2501.0,0.79904]
[1749224449127,9.28e-06,2501.1,2501.0,0.79904]
[1749224449924,9.28e-06,2501.1,2501.0,2.08834]
[1749224450919,9.28e-06,2501.1,2501.0,0.79904]
[1749224452122,3.20780928,2501.1,2501.0,0.79904]
[1749224452527,9.28e-06,2501.1,2501.0,0.79904]
[1749224452828,3.20780928,2501.1,2501.0,0.79904]
[1749224453032,8.20780928,2501.1,2500.8,0.00599928]
[1749224453222,0.79907,2500.9,2500.8,0.00599928]
[1749224453719,2.17847,2500.9,2500.8,0.00599928]
[1749224454317,1.3794,2500.9,2500.8,0.80510928]
[1749224454829,2.17847,2500.9,2500.8,0.00599928]
[1749224455024,1.3794,2500.9,2500.3,3.2078]
[1749224455222,1.3794,2500.9,2500.8,0.79911]
[1749224455419,4.5872,2500.9,2500.5,1.99801]
[1749224455632,4.5872,2500.9,2500.6,0.79916]
[1749224455822,5.38629,2500.9,2500.6,0.79916]
[1749224456129,5.38627,2500.9,2500.6,0.79915]
[1749224456332,4.5872,2500.9,2500.5,0.79918]
[1749224456627,5.38629,2500.9,2500.6,0.79917]
[1749224456823,5.38628,2500.9,2500.6,0.79917]
[1749224457128,4.5872,2500.9,2500.3,5.20595]
[1749224457332,5.3863,2500.9,2500.6,0.79914]
[1749224457532,4.5872,2500.9,2500.6,0.79914]
[1749224457723,4.5872,2500.9,2500.7,0.79914]
[1749224457918,5.38628,2500.9,2500.6,0.79915]
[1749224458124,4.5872,2500.9,2500.3,3.2078]
[1749224458327,5.38629,2500.9,2500.6,0.79916]
[1749224459025,4.5872,2500.9,2500.4,1.99809]
[1749224459223,4.5872,2500.9,2500.7,0.79913]
[1749224459419,4.5872,2500.9,2500.4,1.99809]
[1749224460028,4.5872,2500.9,2500.8,0.79911]
[1749224460930,4.5872,2500.9,2500.4,3.36719]
[1749224461230,4.5872,2500.9,2500.3,5.20595]
[1749224461432,5.38629,2500.9,2500.6,0.79916]
[1749224461625,0.79911,2500.8,2500.3,5.20595]
[1749224461928,3.2078,2500.9,2500.8,0.79911]
[1749224462132,3.2078,2500.9,2500.7,0.79912]
[1749224462428,0.79911,2500.8,2500.6,0.79915]
[1749224462732,2.14681,2500.8,2500.6,0.79915]
[1749224463031,1.3477,2500.8,2500.1,6.0081]
[1749224463236,3.2078,2500.5,2499.9,0.6773]
[1749224463429,2.14695,2500.4,2499.9,2.67578]
[1749224463627,1.3477,2500.4,2500.2,0.79928]
[1749224463826,19.162,2500.3,2499.8,3.2078]
[1749224464031,3.2078,2499.9,2499.2,3.2078]
[1749224464324,0.00599928,2499.8,2499.7,0.79946]
[1749224464726,9.28e-06,2499.8,2499.7,11.11346]
[1749224464926,9.28e-06,2499.8,2499.7,12.43336]
[1749224465531,9.28e-06,2499.8,2499.7,2.11936]
[1749224465929,9.28e-06,2499.8,2499.7,12.43336]
[1749224470231,9.28e-06,2499.8,2499.7,7.43436]
[1749224470431,9.28e-06,2499.8,2499.7,0.79946]
[1749224470834,1.30570928,2499.8,2499.7,0.79946]
[1749224471138,1.30570928,2499.8,2499.5,0.00599928]
[1749224471434,1.30570928,2499.8,2499.6,0.79947]
[1749224471633,1.30570928,2499.8,2499.7,0.79946]
[1749224472136,1.30570928,2499.8,2499.5,0.00599928]
[1749224472835,3.2078,2499.6,2498.6,3.2078]
[1749224473132,1.2904,2499.5,2499.4,0.79955]
[1749224473330,1.2904,2499.5,2499.3,0.79956]
[1749224473729,1.2904,2499.5,2498.8,2.6615]
[1749224473933,0.6828,2499.4,2499.3,0.79959]
[1749224474130,0.6828,2499.4,2498.8,2.6615]
[1749224474442,1.2904,2499.3,2499.0,0.79967]
[1749224475435,1.48236,2499.4,2498.8,1.3035]
[1749224475436,0.6828,2499.4,2498.8,1.99937]